fUST/lending_fUST_20250423
["ID","MTS","AMOUNT","RATE_DAILY","PERIOD"]
[358739729,1745406688130,-544.88,0.00024016,2]
[358739730,1745406688140,-500.0,0.00024016,2]
[358739731,1745406688150,-2820.05,0.00024016,2]
[358739732,1745406688159,-558.75,0.00024016,2]
[358739733,1745406688171,-1535.69,0.00024016,2]
[358739734,1745406688183,-525.06,0.00024016,2]
[358739735,1745406688193,-3671.34,0.00024016,2]
[358739736,1745406688203,-500.0,0.00024016,2]
[358739737,1745406688214,-816.63,0.00024018,2]
[358739738,1745406688224,-787.01,0.00024018,2]
[358739739,1745406688234,-500.0,0.00024018,2]
[358739740,1745406688243,-500.0,0.00024018,2]
[358739741,1745406688254,-517.81,0.00024019,2]
[358739742,1745406688264,-500.0,0.00024021,2]
[358739743,1745406688273,-500.0,0.00024021,2]
[358739744,1745406688283,-3583.84413045,0.00024038,5]
[358739745,1745406688293,-226.14,0.00024109,2]
[358739746,1745406688303,-226.14,0.00024109,2]
[358739747,1745406688313,-226.14,0.00024109,2]
[358739748,1745406688323,-226.14,0.00024109,2]
[358739749,1745406688332,-226.14,0.00024109,2]
[358739750,1745406688342,-226.14,0.00024109,2]
[358739751,1745406688352,-226.14,0.00024109,2]
[358739752,1745406688362,-226.14,0.00024109,2]
[358739753,1745406688373,-226.14,0.00024109,2]
[358739754,1745406688382,-226.14,0.00024109,2]
[358739755,1745406688392,-226.14,0.00024109,2]
[358739756,1745406688402,-226.14,0.00024109,2]
[358739757,1745406688412,-226.14,0.00024109,2]
[358739758,1745406688421,-226.14,0.00024109,2]
[358739759,1745406688431,-226.14,0.00024109,2]
[358739760,1745406688441,-226.14,0.00024109,2]
[358739761,1745406688450,-500.0,0.00024288,2]
[358739762,1745406688460,-1233.74,0.00024288,2]
[358739763,1745406688470,-500.0,0.00024288,2]
[358739764,1745406688480,-1063.73,0.00024288,2]
[358739765,1745406688490,-500.0,0.00024288,2]
[358739766,1745406688501,-1565.82,0.00024288,2]
[358739767,1745406688511,-2600.73,0.00024288,2]
[358739768,1745406688520,-500.0,0.00024288,2]
[358739769,1745406688530,-6139.88,0.00024288,2]
[358739770,1745406688540,-3428.99,0.00024288,2]
[358739771,1745406688551,-610.39,0.00024288,2]
[358739772,1745406688560,-582.2,0.00024288,2]
[358739773,1745406688569,-2287.57,0.00024288,2]
[358739774,1745406688579,-500.0,0.00024288,2]
[358739775,1745406688588,-507.33,0.00024289,2]
[358739776,1745406688597,-1754.3,0.00024289,2]
[358739777,1745406688607,-871.23,0.00024289,2]
[358739778,1745406688616,-500.0,0.0002429,2]
[358739779,1745406688625,-500.0,0.0002429,2]
[358739780,1745406688635,-500.0,0.0002429,2]
[358739781,1745406688645,-500.0,0.0002429,2]
[358739782,1745406688654,-512.74,0.0002429,2]
[358739783,1745406688663,-500.0,0.0002429,2]
[358739784,1745406688672,-500.0,0.0002429,2]
[358739785,1745406688682,-500.11,0.0002429,2]
[358739786,1745406688692,-531.44,0.0002429,2]
[358739787,1745406688701,-544.88,0.0002429,2]
[358739788,1745406688710,-500.0,0.0002429,2]
[358739789,1745406688720,-2820.05,0.0002429,2]
[358739790,1745406688729,-558.75,0.0002429,2]
[358739791,1745406688738,-1535.69,0.0002429,2]
[358739792,1745406688748,-226.14,0.0002429,2]
[358739793,1745406688757,-3671.34,0.0002429,2]
[358739794,1745406688766,-500.0,0.0002429,2]
[358739795,1745406688775,-151.0,0.00024291,7]
[358739796,1745406688784,-197.513673,0.00024291,7]
[358739797,1745406688794,-151.0,0.00024291,7]
[358739798,1745406688803,-151.217405,0.00024291,7]
[358739799,1745406688813,-177.275532,0.00024291,7]
[358739800,1745406688823,-595.565192,0.00024291,7]
[358739801,1745406688832,-595.565192,0.00024291,7]
[358739802,1745406688843,-694.183642,0.00024291,7]
[358739803,1745406688853,-694.183642,0.00024291,7]
[358739804,1745406688862,-816.63,0.00024292,2]
[358739805,1745406688874,-787.01,0.00024292,2]
[358739806,1745406688884,-500.0,0.00024292,2]
[358739807,1745406688896,-500.0,0.00024292,2]
[358739808,1745406688906,-517.81,0.00024293,2]
[358739809,1745406688916,-274.67,0.00024295,2]
[358739810,1745406688926,-296.86,0.00024295,2]
[358739811,1745406688935,-500.0,0.00024383,2]
[358739812,1745406688945,-500.0,0.00024562,2]
[358739813,1745406688954,-1233.74,0.00024562,2]
[358739814,1745406688965,-500.0,0.00024562,2]
[358739815,1745406688975,-1063.73,0.00024562,2]
[358739816,1745406688985,-500.0,0.00024562,2]
[358739817,1745406688997,-1565.82,0.00024562,2]
[358739818,1745406689007,-2600.73,0.00024562,2]
[358739819,1745406689018,-500.0,0.00024562,2]
[358739820,1745406689028,-6139.88,0.00024562,2]
[358739821,1745406689037,-3428.99,0.00024562,2]
[358739822,1745406689047,-610.39,0.00024562,2]
[358739823,1745406689057,-582.2,0.00024562,2]
[358739824,1745406689067,-2287.57,0.00024562,2]
[358739825,1745406689077,-500.0,0.00024562,2]
[358739826,1745406689087,-507.33,0.00024563,2]
[358739827,1745406689096,-1754.3,0.00024563,2]
[358739828,1745406689106,-871.23,0.00024563,2]
[358739829,1745406689115,-500.0,0.00024564,2]
[358739830,1745406689125,-571.34,0.00024564,2]
[358739831,1745406689134,-500.0,0.00024564,2]
[358739832,1745406689143,-500.0,0.00024564,2]
[358739833,1745406689153,-512.74,0.00024564,2]
[358739834,1745406689162,-500.0,0.00024564,2]
[358739835,1745406689178,-500.0,0.00024564,2]
[358739836,1745406689187,-500.11,0.00024564,2]
[358739837,1745406689198,-531.44,0.00024564,2]
[358739838,1745406689207,-544.88,0.00024564,2]
[358739839,1745406689219,-500.0,0.00024564,2]
[358739840,1745406689228,-2820.05,0.00024564,2]
[358739841,1745406689238,-558.75,0.00024564,2]
[358739842,1745406689248,-1535.69,0.00024564,2]
[358739843,1745406689258,-226.14,0.00024564,2]
[358739844,1745406689268,-3671.34,0.00024564,2]
[358739845,1745406689277,-500.0,0.00024564,2]
[358739846,1745406689287,-816.63,0.00024566,2]
[358739847,1745406689297,-787.01,0.00024566,2]
[358739848,1745406689307,-500.0,0.00024566,2]
[358739849,1745406689316,-500.0,0.00024566,2]
[358739850,1745406689325,-517.81,0.00024567,2]
[358739851,1745406689336,-12500.0,0.00024578,3]
[358739852,1745406689346,-12500.0,0.00024587,3]
[358739853,1745406689355,-151.0,0.00024587,7]
[358739854,1745406689366,-4256.12149,0.00024587,7]
[358739855,1745406689377,-4256.12149,0.00024587,7]
[358739856,1745406689388,-151.0,0.00024587,7]
[358739857,1745406689398,-839.95942076,0.0002459,3]
[358739858,1745406689408,-420.82143104,0.0002459,3]
[358739859,1745406689418,-160.0,0.0002459,7]
[358739860,1745406689427,-160.0,0.0002459,7]
[358739861,1745406689437,-160.0,0.0002459,3]
[358739862,1745406689447,-12573.79847128,0.0002459,7]
[358739863,1745406689457,-160.0,0.0002459,7]
[358739864,1745406689466,-151.0,0.00024595,7]
[358739865,1745406689476,-12500.0,0.00024595,3]
[358739866,1745406689485,-160.0,0.000246,3]
[358739867,1745406689495,-160.0,0.000246,3]
[358739868,1745406689505,-151.0,0.00024604,7]
[358739869,1745406689515,-12500.0,0.00024604,3]
[358739870,1745406689524,-12500.0,0.00024613,3]
[358739871,1745406689533,-12500.0,0.00024622,3]
[358739872,1745406689543,-153.0,0.0002463,2]
[358739873,1745406689552,-153.0,0.0002463,2]
[358739874,1745406689562,-153.0,0.0002463,2]
[358739875,1745406689571,-153.0,0.0002463,2]
[358739876,1745406689580,-153.0,0.0002463,2]
[358739877,1745406689590,-153.0,0.0002463,2]
[358739878,1745406689599,-12500.0,0.00024631,3]
[358739879,1745406689608,-12500.0,0.00024639,3]
[358739880,1745406689617,-12500.0,0.00024648,3]
[358739881,1745406689627,-12500.0,0.00024657,3]
[358739882,1745406689636,-5671.69773656,0.00024657,3]
[358739883,1745406689645,-489.15770395,0.00024658,7]
[358739884,1745406689655,-3000.0,0.0002468,7]
[358739885,1745406689804,-151.0,0.0002468,7]
[358739886,1745406689814,-151.0,0.0002468,7]
[358739887,1745406689823,-151.0,0.0002468,7]
[358739888,1745406689833,-221.565975,0.0002468,7]
[358739889,1745406689842,-221.565975,0.0002468,7]
[358739890,1745406689851,-151.0,0.0002468,7]
[358739891,1745406689860,-151.0,0.0002468,7]
[358739892,1745406689869,-351.918756,0.0002468,2]
[358739893,1745406689879,-351.918756,0.0002468,2]
[358739894,1745406689888,-160.0,0.000247,3]
[358739895,1745406689898,-160.0,0.000247,3]
[358739896,1745406689907,-839.95942076,0.000247,7]
[358739897,1745406689917,-839.95942076,0.000247,3]
[358739898,1745406689926,-420.82143104,0.000247,7]
[358739899,1745406689937,-420.82143104,0.000247,3]
[358739900,1745406689948,-160.0,0.000247,3]
[358739901,1745406689957,-250.0,0.00024701,2]
[358739902,1745406689966,-3583.84413045,0.00024728,5]
[358739903,1745406689976,-151.0,0.000248,7]
[358739904,1745406689985,-2000.0,0.00024812,4]
[358739905,1745406689995,-500.0,0.00024836,2]
[358739906,1745406690007,-1233.74,0.00024836,2]
[358739907,1745406690021,-500.0,0.00024836,2]
[358739908,1745406690030,-1063.73,0.00024836,2]
[358739909,1745406690039,-500.0,0.00024836,2]
[358739910,1745406690049,-1565.82,0.00024836,2]
[358739911,1745406690059,-2600.73,0.00024836,2]
[358739912,1745406690068,-500.0,0.00024836,2]
[358739913,1745406690078,-6139.88,0.00024836,2]
[358739914,1745406690087,-3428.99,0.00024836,2]
[358739915,1745406690098,-610.39,0.00024836,2]
[358739916,1745406690107,-582.2,0.00024836,2]
[358739917,1745406690117,-2287.57,0.00024836,2]
[358739918,1745406690127,-500.0,0.00024836,2]
[358739919,1745406690139,-507.33,0.00024837,2]
[358739920,1745406690149,-1754.3,0.00024837,2]
[358739921,1745406690159,-871.23,0.00024837,2]
[358739922,1745406690174,-500.0,0.00024838,2]
[358739923,1745406690186,-221.87,0.00024838,2]
[358739924,1745406690198,-500.0,0.00024838,2]
[358739925,1745406690208,-512.74,0.00024838,2]
[358739926,1745406690218,-500.0,0.00024838,2]
[358739927,1745406690227,-500.0,0.00024838,2]
[358739928,1745406690237,-500.11,0.00024838,2]
[358739929,1745406690248,-531.44,0.00024838,2]
[358739930,1745406690258,-544.88,0.00024838,2]
[358739931,1745406690268,-500.0,0.00024838,2]
[358739932,1745406690278,-2820.05,0.00024838,2]
[358739933,1745406690288,-558.75,0.00024838,2]
[358739934,1745406690299,-1535.69,0.00024838,2]
[358739935,1745406690310,-226.14,0.00024838,2]
[358739936,1745406690319,-151.0,0.00024838,7]
[358739937,1745406690329,-151.0,0.00024838,7]
[358739938,1745406690339,-311.949792,0.00024838,7]
[358739939,1745406690349,-311.949792,0.00024838,7]
[358739940,1745406690359,-3671.34,0.00024838,2]
[358739941,1745406690370,-382.56,0.00024838,2]
[358739942,1745406690379,-816.63,0.00024839,2]
[358739943,1745406690389,-787.01,0.00024839,2]
[358739944,1745406690399,-528.46868888,0.00024839,2]
[358739945,1745406690410,-500.0,0.00024839,2]
[358739946,1745406690421,-517.81,0.00024841,2]
[358739947,1745406690432,-394.48436197,0.00024853,2]
[358739948,1745406690442,-394.48436197,0.00024857,2]
[358739949,1745406690452,-394.48436197,0.00024872,2]
[358739950,1745406690462,-500.0,0.00024873,2]
[358739951,1745406690472,-500.0,0.00024873,2]
[358739952,1745406690483,-527.7138663,0.00024876,2]
[358739953,1745406690494,-394.48436197,0.00024877,2]
[358739954,1745406690503,-151.0,0.000249,7]
[358739955,1745406690513,-688.263941,0.000249,7]
[358739956,1745406690523,-151.0,0.000249,7]
[358739957,1745406690532,-688.263941,0.000249,7]
[358739958,1745406690543,-420.748568,0.000249,7]
[358739959,1745406690553,-420.748568,0.000249,7]
[358739960,1745406690563,-151.0,0.000249,7]
[358739961,1745406690573,-151.0,0.000249,7]
[358739962,1745406690583,-151.0,0.000249,7]
[358739963,1745406690594,-237393.037057,0.000249,2]
[358739964,1745406690603,-281.114084,0.000249,7]
[358739965,1745406690614,-281.114084,0.000249,7]
[358739966,1745406690624,-1200.0,0.00024904,2]
[358739967,1745406690634,-151.0,0.00024945,2]
[358739968,1745406690644,-151.25846906,0.00024945,2]
[358739969,1745406690654,-230192.04982415,0.00025,2]
[358739970,1745406690663,-151.0,0.00025,7]
[358739971,1745406690673,-151.0,0.00025,7]
[358739972,1745406690685,-151.0,0.00025,7]
[358739973,1745406690695,-1021.287987,0.00025,7]
[358739974,1745406690706,-1021.287987,0.00025,7]
[358739975,1745406690716,-152.830499,0.00025,7]
[358739976,1745406690726,-151.0,0.00025,7]
[358739977,1745406690739,-196.569819,0.00025,7]
[358739978,1745406690749,-504.763637,0.00025,7]
[358739979,1745406690760,-595.565192,0.00025,7]
[358739980,1745406690770,-504.763637,0.00025,7]
[358739981,1745406690780,-595.565192,0.00025,7]
[358739982,1745406690790,-151.0,0.00025,7]
[358739983,1745406690801,-160.0,0.00025,7]
[358739984,1745406690811,-160.0,0.00025,7]
[358739985,1745406690821,-4256.12149,0.00025,7]
[358739986,1745406690831,-4256.12149,0.00025,7]
[358739987,1745406690841,-694.183642,0.00025,7]
[358739988,1745406690851,-151.0,0.00025,7]
[358739989,1745406690862,-694.183642,0.00025,7]
[358739990,1745406690872,-151.0,0.00025,7]
[358739991,1745406690882,-522.6319,0.00025,7]
[358739992,1745406690892,-522.6319,0.00025,7]
[358739993,1745406690902,-151.0,0.00025,7]
[358739994,1745406690911,-151.0,0.00025,7]
[358739995,1745406690922,-221.565975,0.00025,7]
[358739996,1745406690932,-221.565975,0.00025,7]
[358739997,1745406690942,-151.0,0.00025,7]
[358739998,1745406690952,-151.0,0.00025,7]
[358739999,1745406690962,-151.0,0.00025,7]
[358740000,1745406690971,-351.918756,0.00025,2]
[358740001,1745406690981,-351.918756,0.00025,2]
[358740002,1745406690991,-500.0,0.0002511,2]
[358740003,1745406691001,-1233.74,0.0002511,2]
[358740004,1745406691011,-639.79,0.0002511,2]
[358740005,1745406691020,-1063.73,0.0002511,2]
[358740006,1745406691030,-500.0,0.0002511,2]
[358740007,1745406691040,-1565.82,0.0002511,2]
[358740008,1745406691050,-2600.73,0.0002511,2]
[358740009,1745406691060,-500.0,0.0002511,2]
[358740010,1745406691070,-6139.88,0.0002511,2]
[358740011,1745406691080,-3428.99,0.0002511,2]
[358740012,1745406691090,-610.39,0.0002511,2]
[358740013,1745406691100,-582.2,0.0002511,2]
[358740014,1745406691110,-2287.57,0.0002511,2]
[358740015,1745406691119,-500.0,0.0002511,2]
[358740016,1745406691130,-507.33,0.00025111,2]
[358740017,1745406691139,-1754.3,0.00025111,2]
[358740018,1745406691149,-871.23,0.00025111,2]
[358740019,1745406691158,-351.99,0.00025112,2]
[358740020,1745406691170,-500.0,0.00025112,2]
[358740021,1745406691180,-512.74,0.00025112,2]
[358740022,1745406691189,-500.0,0.00025112,2]
[358740023,1745406691198,-422.15,0.00025112,2]
[358740024,1745406691208,-500.11,0.00025112,2]
[358740025,1745406691219,-531.44,0.00025112,2]
[358740026,1745406691228,-544.88,0.00025112,2]
[358740027,1745406691238,-322.32,0.00025112,2]
[358740028,1745406691249,-2820.05,0.00025112,2]
[358740029,1745406691259,-558.75,0.00025112,2]
[358740030,1745406691268,-1535.69,0.00025112,2]
[358740031,1745406691278,-226.14,0.00025112,2]
[358740032,1745406691288,-3671.34,0.00025112,2]
[358740033,1745406691298,-816.63,0.00025113,2]
[358740034,1745406691307,-787.01,0.00025113,2]
[358740035,1745406691316,-500.0,0.00025113,2]
[358740036,1745406691326,-517.81,0.00025115,2]
[358740037,1745406691337,-163.11,0.00025173,2]
[358740038,1745406691348,-317.89,0.00025173,7]
[358740039,1745406691358,-170.23,0.00025384,2]
[358740040,1745406691367,-1233.74,0.00025384,2]
[358740041,1745406691377,-1063.73,0.00025384,2]
[358740042,1745406691387,-500.0,0.00025384,2]
[358740043,1745406691397,-1565.82,0.00025384,2]
[358740044,1745406691409,-2600.73,0.00025384,2]
[358740045,1745406691420,-500.0,0.00025384,2]
[358740046,1745406691430,-6139.88,0.00025384,2]
[358740047,1745406691441,-3428.99,0.00025384,2]
[358740048,1745406691450,-610.39,0.00025384,2]
[358740049,1745406691460,-582.2,0.00025384,2]
[358740050,1745406691469,-2287.57,0.00025384,2]
[358740051,1745406691479,-507.33,0.00025385,2]
[358740052,1745406691488,-1754.3,0.00025385,2]
[358740053,1745406691498,-871.23,0.00025385,2]
[358740054,1745406691507,-343.64,0.00025386,2]
[358740055,1745406691517,-512.74,0.00025386,2]
[358740056,1745406691526,-583.67,0.00025386,2]
[358740057,1745406691535,-500.11,0.00025386,2]
[358740058,1745406691546,-531.44,0.00025386,2]
[358740059,1745406691555,-544.88,0.00025386,2]
[358740060,1745406691565,-2820.05,0.00025386,2]
[358740061,1745406691574,-558.75,0.00025386,2]
[358740062,1745406691584,-1535.69,0.00025386,2]
[358740063,1745406691594,-226.14,0.00025386,2]
[358740064,1745406691604,-3671.34,0.00025386,2]
[358740065,1745406691613,-816.63,0.00025387,2]
[358740066,1745406691623,-787.01,0.00025387,2]
[358740067,1745406691632,-500.0,0.00025387,2]
[358740068,1745406691641,-517.81,0.00025389,2]
[358740069,1745406691650,-3583.84413045,0.00025417,6]
[358740070,1745406691660,-171.088319,0.00025452,7]
[358740071,1745406691669,-151.0,0.00025452,7]
[358740072,1745406691679,-151.0,0.00025452,7]
[358740073,1745406691688,-311.949792,0.00025452,7]
[358740074,1745406691697,-311.949792,0.00025452,7]
[358740075,1745406691706,-1000.0,0.00025452,2]
[358740076,1745406691715,-1000.0,0.00025452,2]
[358740077,1745406691725,-1000.0,0.00025452,2]
[358740078,1745406691734,-500.0,0.00025452,2]
[358740079,1745406691743,-1000.0,0.00025452,2]
[358740080,1745406691752,-1002.88602326,0.00025452,2]
[358740081,1745406691761,-500.0,0.00025452,2]
[358740082,1745406691770,-500.0,0.00025452,2]
[358740083,1745406691779,-1000.0,0.00025452,2]
[358740084,1745406691789,-1000.0,0.00025452,2]
[358740085,1745406691798,-476.71499334,0.00025452,2]
[358740086,1745406691807,-392.28262339,0.00025452,2]
[358740087,1745406691817,-809.449994,0.00025452,2]
[358740088,1745406691827,-1000.0,0.00025452,2]
[358740089,1745406691837,-1000.0,0.00025452,2]
[358740090,1745406691847,-1000.0,0.00025452,2]
[358740091,1745406691857,-1000.0,0.00025452,2]
[358740092,1745406691866,-1012.89864386,0.00025452,2]
[358740093,1745406691875,-1000.0,0.00025452,2]
[358740094,1745406691884,-1000.0,0.00025452,2]
[358740095,1745406691893,-1000.0,0.00025452,2]
[358740096,1745406691902,-1000.0,0.00025452,2]
[358740097,1745406691912,-1000.0,0.00025452,2]
[358740098,1745406691921,-1000.0,0.00025452,2]
[358740099,1745406691931,-1000.0,0.00025452,2]
[358740100,1745406691941,-1000.0,0.00025452,2]
[358740101,1745406691951,-1000.0,0.00025452,2]
[358740102,1745406691960,-1000.0,0.00025452,2]
[358740103,1745406691970,-501.75562334,0.00025452,2]
[358740104,1745406691980,-3000.0,0.00025502,7]
[358740105,1745406691989,-1000.0,0.00025652,2]
[358740106,1745406691999,-500.0,0.00025652,2]
[358740107,1745406692008,-1000.0,0.00025652,2]
[358740108,1745406692018,-1000.0,0.00025652,2]
[358740109,1745406692027,-1000.0,0.00025652,2]
[358740110,1745406692036,-212.92620999,0.00025652,2]
[358740111,1745406692046,-1000.0,0.00025652,2]
[358740112,1745406692055,-541.34022275,0.00025652,2]
[358740113,1745406692065,-635.8664247,0.00025652,2]
[358740114,1745406692075,-1000.0,0.00025652,2]
[358740115,1745406692085,-1000.0,0.00025652,2]
[358740116,1745406692096,-1000.0,0.00025652,2]
[358740117,1745406692105,-1000.0,0.00025652,2]
[358740118,1745406692114,-1000.0,0.00025652,2]
[358740119,1745406692123,-1233.74,0.00025658,2]
[358740120,1745406692132,-1063.73,0.00025658,2]
[358740121,1745406692142,-500.0,0.00025658,2]
[358740122,1745406692151,-1565.82,0.00025658,2]
[358740123,1745406692161,-2600.73,0.00025658,2]
[358740124,1745406692175,-500.0,0.00025658,2]
[358740125,1745406692185,-6139.88,0.00025658,2]
[358740126,1745406692195,-3428.99,0.00025658,2]
[358740127,1745406692204,-610.39,0.00025658,2]
[358740128,1745406692214,-582.2,0.00025658,2]
[358740129,1745406692224,-2287.57,0.00025658,2]
[358740130,1745406692233,-507.33,0.00025659,2]
[358740131,1745406692243,-1754.3,0.00025659,2]
[358740132,1745406692391,-871.23,0.00025659,2]
[358740133,1745406692401,-512.74,0.0002566,2]
[358740134,1745406692411,-500.11,0.0002566,2]
[358740135,1745406692420,-531.44,0.0002566,2]
[358740136,1745406692429,-544.88,0.0002566,2]
[358740137,1745406692438,-2820.05,0.0002566,2]
[358740138,1745406692448,-558.75,0.0002566,2]
[358740139,1745406692458,-1535.69,0.0002566,2]
[358740140,1745406692468,-226.14,0.0002566,2]
[358740141,1745406692477,-3671.34,0.0002566,2]
[358740142,1745406692486,-706.0,0.00025661,2]
[358740143,1745406692495,-544.0,0.00025661,2]
[358740144,1745406692504,-816.63,0.00025661,2]
[358740145,1745406692513,-787.01,0.00025661,2]
[358740146,1745406692523,-607.23,0.00025661,2]
[358740147,1745406692532,-517.81,0.00025663,2]
[358740148,1745406692541,-2000.0,0.00025677,4]
[358740149,1745406692551,-823.0,0.00025703,2]
[358740150,1745406692560,-1233.74,0.00025932,2]
[358740151,1745406692569,-1063.73,0.00025932,2]
[358740152,1745406692579,-500.0,0.00025932,2]
[358740153,1745406692588,-1565.82,0.00025932,2]
[358740154,1745406692599,-2600.73,0.00025932,2]
[358740155,1745406692608,-291.18,0.00025932,2]
[358740156,1745406692618,-6139.88,0.00025932,2]
[358740157,1745406692627,-3428.99,0.00025932,2]
[358740158,1745406692637,-610.39,0.00025932,2]
[358740159,1745406692646,-582.2,0.00025932,2]
[358740160,1745406692655,-2287.57,0.00025932,2]
[358740161,1745406692664,-507.33,0.00025933,2]
[358740162,1745406692673,-1754.3,0.00025933,2]
[358740163,1745406692683,-871.23,0.00025933,2]
[358740164,1745406692693,-512.74,0.00025934,2]
[358740165,1745406692702,-500.11,0.00025934,2]
[358740166,1745406692711,-531.44,0.00025934,2]
[358740167,1745406692720,-544.88,0.00025934,2]
[358740168,1745406692729,-2820.05,0.00025934,2]
[358740169,1745406692738,-558.75,0.00025934,2]
[358740170,1745406692748,-1535.69,0.00025934,2]
[358740171,1745406692757,-226.14,0.00025934,2]
[358740172,1745406692767,-3671.34,0.00025934,2]
[358740173,1745406692776,-816.63,0.00025935,2]
[358740174,1745406692785,-787.01,0.00025935,2]
[358740175,1745406692794,-517.81,0.00025936,2]
[358740176,1745406692804,-151.0,0.00025939,7]
[358740177,1745406692813,-151.0,0.00025939,7]
[358740178,1745406692822,-698.850058,0.00025939,2]
[358740179,1745406692831,-531.926219,0.00025939,7]
[358740180,1745406692842,-531.926219,0.00025939,7]
[358740181,1745406692851,-488.670176,0.00025939,7]
[358740182,1745406692860,-488.670176,0.00025939,7]
[358740183,1745406692869,-151.0,0.00025939,7]
[358740184,1745406692878,-1000.0,0.00025952,2]
[358740185,1745406692888,-1000.0,0.00025952,2]
[358740186,1745406692898,-1000.0,0.00025952,2]
[358740187,1745406692907,-1000.0,0.00025952,2]
[358740188,1745406692917,-1000.0,0.00025952,2]
[358740189,1745406692926,-1000.0,0.00025952,2]
[358740190,1745406692935,-587.17334316,0.00025952,2]
[358740191,1745406692944,-1000.0,0.00025952,2]
[358740192,1745406692954,-2200.0,0.00026012,2]
[358740193,1745406692963,-3583.84413045,0.00026107,6]
[358740194,1745406692972,-1233.85024413,0.00026206,2]
[358740195,1745406692982,-1063.77,0.00026206,2]
[358740196,1745406692991,-280.85,0.00026206,2]
[358740197,1745406693001,-1565.90633908,0.00026206,2]
[358740198,1745406693010,-2600.77940693,0.00026206,2]
[358740199,1745406693021,-6140.08030008,0.00026206,2]
[358740200,1745406693031,-3429.16026102,0.00026206,2]
[358740201,1745406693041,-610.62,0.00026206,2]
[358740202,1745406693051,-582.2,0.00026206,2]
[358740203,1745406693061,-2287.77990612,0.00026206,2]
[358740204,1745406693070,-507.46,0.00026207,2]
[358740205,1745406693080,-1754.36325256,0.00026207,2]
[358740206,1745406693090,-871.39409313,0.00026207,2]
[358740207,1745406693099,-512.85,0.00026208,2]
[358740208,1745406693109,-500.18503854,0.00026208,2]
[358740209,1745406693119,-531.57443123,0.00026208,2]
[358740210,1745406693128,-545.10319337,0.00026208,2]
[358740211,1745406693137,-2820.27953393,0.00026208,2]
[358740212,1745406693146,-558.79,0.00026208,2]
[358740213,1745406693157,-1535.74,0.00026208,2]
[358740214,1745406693167,-226.26,0.00026208,2]
[358740215,1745406693179,-3671.55,0.00026208,2]
[358740216,1745406693189,-816.86,0.00026209,2]
[358740217,1745406693198,-787.1,0.00026209,2]
[358740218,1745406693207,-517.96728497,0.0002621,2]
[358740219,1745406693217,-1000.0,0.00026252,2]
[358740220,1745406693227,-1000.0,0.00026252,2]
[358740221,1745406693235,-1000.0,0.00026252,2]
[358740222,1745406693244,-180.1405096,0.00026297,2]
[358740223,1745406693256,-151.0,0.00026314,2]
[358740224,1745406693266,-3000.0,0.00026324,7]
[358740225,1745406693275,-160.0,0.000264,7]
[358740226,1745406693288,-2000.0,0.00026541,4]
[358740227,1745406693297,-1500.0,0.00026548,2]
[358740228,1745406693306,-615.425,0.00026621,14]